Cogmind - Beta 9.3 *** ADVENTURER MODE // 2019.12.27 @ 21:01:28 // Winter2019/RPGLIKE Player: DanielJ Result: Destroyed by G-47 Trooper with Particle Gun Performance ------------- Evolutions (0) 0 Regions Visited (1) 200 Robots Destroyed (11) 55 Value Destroyed (118) 118 Prototype IDs (0) 0 Alien Tech Used (0) 0 Bonus (0) 0 TOTAL SCORE: 373 Bonus ------- None Cogmind --------- Core Integrity 0/650 Matter 300/300 Energy 60/100 System Corruption 0% Temperature Cool (177) Movement Walking (150) Ox1 Location -10/Materials Parts ------- > --- POWER (1) -------- Ion Engine > --- PROPULSION (3) --- Aluminum Leg Aluminum Leg > --- UTILITY (2) ------ Medium Armor Plating Medium Armor Plating > --- WEAPON (3) ------- Particle Cannon Particle Cannon Particle Cannon > --- INVENTORY (2) ---- Light Ion Engine Particle Cannon Peak State ------------ > --- POWER ------------ Ion Engine > --- PROPULSION ------- Aluminum Leg Aluminum Leg > --- UTILITY ---------- Medium Armor Plating Medium Armor Plating > --- WEAPON ----------- Particle Cannon Particle Cannon Particle Cannon > --- INVENTORY -------- Light Ion Engine Particle Cannon [Rating: 13] Favorites ----------- Power Ion Engine Engine Ion Engine Propulsion Aluminum Leg Leg Aluminum Leg Utility Medium Armor Plating Protection Medium Armor Plating Weapon Particle Cannon Energy Gun EM Pulse Gun Energy Cannon Particle Cannon Ballistic Gun Light Assault Rifle Build | -11 -10 ------- Run | Scr Mat Slots Evolved 5 | 5 . Power . | . . Propulsion 2 | 2 . Utility 1 | 1 . Weapon 2 | 2 . Parts Attached 11 | 6 5 Power 1 | 1 . Engine 1 | 1 . Core . | . . Reactor . | . . Propulsion 2 | 2 . Treads . | . . Leg 2 | 2 . Wheel . | . . Hover . | . . Flight . | . . Utility 2 | . 2 Device . | . . Storage . | . . Processor . | . . Hackware . | . . Protection 2 | . 2 Artifact . | . . Weapon 6 | 3 3 Energy Gun 2 | 2 . Energy Cannon 3 | . 3 Ballistic Gun 1 | 1 . Ballistic Cannon . | . . Launcher . | . . Special Weapon . | . . Impact Weapon . | . . Slashing Weapon . | . . Piercing Weapon . | . . Special Melee Weapon . | . . Unidentified Prototypes . | . . Parts Lost . | . . Power . | . . Propulsion . | . . Utility . | . . Weapon . | . . Highest Loss Streak . | . . Average Slot Usage (%) 83 | . 83 Engine 11 | . 11 Leg 22 | . 22 Protection 19 | . 19 Energy Gun 1 | . 1 Energy Cannon 30 | . 30 Naked Turns . | . . Heaviest Build 31 | 10 31 Greatest Support 20 | 20 20 Greatest Overweight (x) 1 | 1 1 Average Overweight (x) . | . . Largest Inventory Capacity 2 | 2 2 Average Capacity 2 | 2 2 Most Carried 2 | 1 2 Average Carried 1 | . 1 Final Capacity 2 | 2 2 Final Carried 2 | 1 2 Class Distribution -------------------- 61% | Tank 26% | Gunner 12% | Mutant Dominant Class ---------------- Tank | -10/Materials Resources | -11 -10 ----------- Run | Scr Mat Matter Collected 313 | 263 50 Remotely . | . . Salvage Created 300 | 115 185 Parts 20 | 8 12 Haulers Intercepted . | . . Recyclers Shooed . | . . Parts Field Recycled . | . . Retrieved Matter . | . . Parts Self-Destructed . | . . Prevented . | . . Kills | -11 -10 ------- Run | Scr Mat Combat Hostiles Destroyed 5 | . 5 Cannons 5 | . 5 Classes Destroyed 4 | 2 2 Tunneler 2 | 2 . Recycler 2 | 1 1 Watcher 2 | . 2 Swarmer 5 | . 5 Best Kill Streak 3 | 3 3 Combat Bots Only 3 | . 3 Max Kills in Single Turn 2 | 1 2 Gunslinging . | . . Exploded . | . . Melee . | . . Uniques/NPCs Destroyed . | . . Combat | -11 -10 -------- Run | Scr Mat Damage Taken 846 | . 846 Core 710 | . 710 Absorbed by Shields . | . . Redirected to Core 407 | . 407 Core Remaining (%) 100 | 100 . Volleys Fired 20 | 3 17 Largest 3 | 3 3 Hottest 204 | 110 204 Shots Fired 56 | 9 47 Gun 9 | 9 . Cannon 47 | . 47 Launcher . | . . Special . | . . Kinetic 3 | 3 . Thermal 50 | 3 47 Explosive . | . . Electromagnetic 3 | 3 . Robot Hit Streak 6 | 3 6 Robot Miss Streak 5 | . 5 Penetration Max . | . . Secondary Targets . | . . Shots Hit Robots 28 | 3 25 Core Hits 13 | 4 9 Critical Hits . | . . Critical Kills . | . . Critical Parts Destroyed . | . . Melee Attacks . | . . Impact . | . . Slashing . | . . Piercing . | . . Sneak Attacks . | . . Combat Hostiles . | . . Follow-up Attacks . | . . Damage Inflicted 629 | 74 555 Guns 74 | 74 . Cannons 555 | . 555 Explosions . | . . Melee . | . . Ramming . | . . Kinetic 6 | 6 . Thermal 580 | 25 555 Explosive . | . . Electromagnetic 43 | 43 . Impact . | . . Slashing . | . . Piercing . | . . Highest Corruption . | . . Average Corruption . | . . Corruption Purged . | . . Overload Shots . | . . Overflow Damage 13 | . 13 Projectiles 13 | . 13 Explosions . | . . Melee . | . . Knockbacks . | . . Impact . | . . Kinetic . | . . Secondary . | . . Self-Inflicted Damage . | . . Shots . | . . Rammed . | . . Targets Rammed . | . . Kicked . | . . Crushed . | . . Highest Temperature 798 | 24 798 Average Temperature 265 | 12 285 Received Heat Transfer 306 | . 306 Effects 25 | . 25 Shutdowns 4 | . 4 Energy Bleed 2 | . 2 Interference 1 | . 1 Matter Decay 4 | . 4 Short Circuit 1 | . 1 Damage (minor) 3 | . 3 Damage (major) 8 | . 8 Damage (core) 2 | . 2 Siege Activations . | . . Robots Corrupted . | . . Combat Hostiles . | . . Parts Fried . | . . Impact Corruptions . | . . Robots Melted . | . . Combat Hostiles . | . . Parts Melted . | . . Heat Transferred 1073 | 74 999 Parts Sabotaged . | . . Parts Stolen . | . . Parts Stripped . | . . Power Chain Reactions . | . . Missiles Intercepted . | . . Alert | -11 -10 ------- Run | Scr Mat Peak Influence 156 | 15 156 Average Influence 58 | 4 76 Maximum Alert Level . | . . Low Security (%) 100 | 100 100 Level 1 . | . . Level 2 . | . . Level 3 . | . . Level 4 . | . . Level 5 . | . . High Security . | . . Max Security . | . . Squads Dispatched 1 | . 1 Investigation 1 | . 1 Extermination . | . . Reinforcement . | . . Assault . | . . Garrison . | . . Intercept . | . . Construction Impeded . | . . Haulers Reinforced . | . . Stealth | -11 -10 --------- Run | Scr Mat Distress Signals . | . . Communications Jammed . | . . Distress Signals . | . . Times Spotted 17 | . 17 Peak Tracking Total 6 | . 6 Tactical Retreats 2 | . 2 Traps | -11 -10 ------- Run | Scr Mat Traps Triggered . | . . Indirectly . | . . Trap Hack Attempts . | . . Triggered . | . . Disarmed . | . . Reprogrammed . | . . Reused . | . . Traps Extracted . | . . Installed . | . . Triggered . | . . Machines | -11 -10 ---------- Run | Scr Mat Machines Disabled 1 | . 1 Max in Single Turn 1 | . 1 Machines Sabotaged . | . . Garrisons Compromised . | . . Overloaded Fab Kills . | . . Fab Network Shutdowns . | . . Hacking | -11 -10 --------- Run | Scr Mat Machines Accessed 1 | . 1 Terminals 1 | . 1 Fabricators . | . . Repair Stations . | . . Recycling Units . | . . Scanalyzers . | . . Garrison Access . | . . Total Hacks 3 | . 3 Successful . | . . Failed 3 | . 3 Catastrophic 1 | . 1 Database Lockouts . | . . Manual . | . . Terminals 3 | . 3 Fabricators . | . . Repair Stations . | . . Recycling Units . | . . Scanalyzers . | . . Garrison Access . | . . Terminal Hacks . | . . Fabricator Hacks . | . . Repair Station Hacks . | . . Recycling Unit Hacks . | . . Scanalyzer . | . . Garrison Access Hacks . | . . Unauthorized Hacks . | . . Terminals . | . . Fabricators . | . . Repair Stations . | . . Recycling Units . | . . Scanalyzers . | . . Garrison Access . | . . Data Cores Recovered . | . . Used . | . . Hacking Detections 1 | . 1 Full Trace Events 1 | . 1 Feedback Events . | . . Feedback Blocked . | . . Robot Schematics Acquired . | . . Robots Built . | . . Matter . | . . Time . | . . Total Robot Build Rating . | . . Part Schematics Acquired . | . . Parts Built . | . . Matter . | . . Time . | . . Total Part Build Rating . | . . Parts Repaired . | . . Time . | . . Parts Recycled . | . . Recycled Matter . | . . Retrieved Matter . | . . Retrieved Components . | . . Parts Scanalyzed . | . . Part Schematics Acquired . | . . Parts Damaged . | . . Bothacking | -11 -10 ------------ Run | Scr Mat Used RIF Installer . | . . Robots Hacked . | . . Non-combat . | . . Combat . | . . Robot Hacks Applied . | . . Relay Couplers Released . | . . Robots Rewired . | . . Allies Hacked . | . . Hacks Repelled . | . . Allies | -11 -10 -------- Run | Scr Mat Total Allies . | . . Largest Group . | . . Highest-Rated Group . | . . Highest-Rated Ally . | . . Total Orders . | . . Ally Attacks . | . . Total Damage . | . . Kills . | . . Allies Corrupted . | . . Allies Melted . | . . Intel | -11 -10 ------- Run | Scr Mat Robot Analysis Total . | . . Derelict Logs Recovered . | . . Drone Launches . | . . Drone Recoveries . | . . Exploration | -11 -10 ------------- Run | Scr Mat Turns Passed 298 | 75 223 Spaces Moved 151 | 54 97 Core 12 | 12 . Treads . | . . Legs 139 | 42 97 Wheels . | . . Hover . | . . Flight . | . . Fastest Speed 50 | 50 120 Average Speed 131 | 105 145 Slowest Speed 150 | 120 150 Overloaded Moves . | . . Propulsion Burnouts . | . . Robots Hopped . | . . Cave-ins Triggered . | . . Exploration Rate (%) 15 | 5 25 Regions Visited 1 Branch Regions . Pre-discovered Areas . | . . Known Exits Taken . | . . Unknown Exits Taken 1 | 1 . Scrap Searched . | . . Spaces Dug . | . . Terrain Destroyed . | . . Melee . | . . Projectile . | . . AOE . | . . Actions | -11 -10 --------- Run | Scr Mat Total 207 | 63 144 Wait 16 | . 16 Move 150 | 53 97 Hop . | . . Pick Up 2 | 1 1 Fast Attach 11 | 6 5 Attach . | . . Detach . | . . Swap . | . . Drop 3 | . 3 Fire 20 | 3 17 Melee . | . . Ram . | . . Kick . | . . Crush . | . . Escape Stasis . | . . Rewire . | . . Trap . | . . Miscellaneous 5 | . 5 Route ------- -11/Scrapyard -10/Materials (discovered 1 exit: [*Min]) History --------- Turn | Location | Event 1 | -11/Scrapyard | Upgraded with Propulsion slot (x2) 1 | -11/Scrapyard | Upgraded with Utility slot (x1) 1 | -11/Scrapyard | Upgraded with Weapon slot (x2) 29 | -11/Scrapyard | Discovered new exit (range 14) 76 | -11/Scrapyard | Entered Materials 171 | -10/Materials | Discovered new exit (range 16) 259 | -10/Materials | Core integrity fell below 50% 283 | -10/Materials | Core integrity fell below 20% 299 | -10/Materials | Destroyed by G-47 Trooper with Particle Gun Last Messages --------------- 00272_ K-01 Serf collects debris. 00272_ S-10 Pest destroyed. 00273_ K-01 Serf collects debris. 00274_ Power failure, Ion Engine shutdown. 00274_ Overheating: Energy bleed (-4). 00275_ Overheating: System interference. 00275_ Particle Cannon temporarily disabled. 00275_ U-05 Engineer lays Concrete. 00276_ Overheating: Aluminum Leg damaged (-34). 00276_ K-01 Serf collects debris. 00277_ Overheating: Matter decay (-75). 00277_ K-01 Serf collects debris. 00281_ U-05 Engineer lays Concrete. 00281_ R-06 Scavenger collects Com. Wheel. 00282_ K-01 Serf collects debris. 00283_ Power failure, Ion Engine shutdown. 00283_ Overheating: Core damaged (-110). 00285_ K-01 Serf collects debris. 00292_ Overheating: Short circuit. 00292_ Broken Ion Engine permanently disabled. Map ----- +----------------------------------------------------+ | ???????# ??# """ # """"" #??????????????????? | | ???????# ### """ # """"" #??????????????????? | | ???????# # """ # """" #??????????????????? | | ???????+ # # #??????????????????? | | ???????# # # ?? #??????????????????? | | ???????# ####+#### ??????????????????????? | | ???????# #??# #??# "T??????????????????????? | | ???????# #??# #??# ####??????????????????????? | | ######## #??# #??# #?????????????????????????? | | #??# #??# #?????????????????????????? | | !* #??# #??# #?????????????????????????? | | #%! =#?## #### #?????????????????????????? | | #! !%### ## #?????????????????????????? | | # ## #?????????????????????????? | | # ## #?????????????????????????? | | # "T" ## #?????????????????????????? | | # """ ## #????########?????????????? | | + """"" ##### ##+#??????????? | | # """"" ?????????? | | # ??""""" % < ?????????? | | ???? """ % % g ?????????? | | ? #######g## #?????????????? | | ? #???# gg #???"!" #?????????????? | | ? #???# #?????????????????????? | | ? #???# #?????????????????????? | | ? #???# @ #?????????????????????? | | ?? #???# #?????????????????????? | | ?? ########## #???# "" #?????????????????????? | | ?????????????# #???# "T #?????????????????????? | | ?????????????# #???# "" #?????????????????????? | | ?????????????# #???# #?????????????????????? | | ?????????????# #???######?????????????????????? | | ?????????????### ??????????????????????????????? | | ???????????????# ??????????????????????????????? | | ???????????????? ??????????????????????????????? | | ???????????????? ??????????????????????????????? | | ???????????????? ???????????????????????????????? | | ?????????????????????????????????????????????????? | | ?????????????????????????????????????????????????? | | ?????????????????????????????????????????????????? | | ?????????????????????????????????????????????????? | | ?????????????????????????????????????????????????? | | ?????????????????????????????????????????????????? | | ?????????????????????????????????????????????????? | | ?????????????????????????????????????????????????? | | ?????????????????????????????????????????????????? | | ?????????????????????????????????????????????????? | | ?????????????????????????????????????????????????? | | ?????????????????????????????????????????????????? | | ?????????????????????????????????????????????????? | +----------------------------------------------------+ Best States ------------- Heat Dissipation 37 Energy Generation 10 Energy Capacity 250 Matter Stores 300 Matter Capacity 300 Sight Range 16 Terrain Scan Density 10 Armor Coverage 450 Resistance: KI 20 Resistance: TH 20 Resistance: EX 20 Resistance: EM 20 Resistance: I 20 Resistance: S 20 Resistance: P 20 Evasion (%) 50 Offensive Hacking 10 Item Schematics ----------------- None Robot Schematics ------------------ None Fabricated ------------ Nothing Alien Tech Used ----------------- None Achievements -------------- None Challenges ------------ None RPGLIKE | -11 -10 --------- Run | Scr Mat Levels Raised . | . . XP Earned 4715 | 4000 715 XP Spent 3995 | 3995 . Upgrades 10 | 10 . Propulsion Slot 2 | 2 . Utility Slot 1 | 1 . Weapon Slot 2 | 2 . Core Integrity 1 | 1 . Heat Dissipation 2 | 2 . Inventory Capacity 2 | 2 . Protomatter Created 27 | . 27 Integrity Restored 69 | . 69 Core 60 | . 60 Parts 9 | . 9 Protomatter Decayed 2 | . 2 Game ------ Seed WeaponXenonCleaver Manual? 0 Play Time 00:07:59 Cumulative 25.5 hours Start 2019.12.27 @ 20:54:03 End 2019.12.27 @ 21:01:28 Sessions 1 Manual Loads 0 Difficulty Adventurer Special Mode Winter2019/RPGLIKE Game No. 17 Rogue 0 Adventurer 17 Explorer 0 Win Type - Total 0 Types 0/0/0/0/0/0/0 Lore% 20 Gallery% 29 Achievement% 27 Wizard Run 0 Options --------- ASCII 0 Keyboard 0 Movement Mouse Keybinds 0 Fullscreen 2 Font 24/Proggy Map View 76x50 Tactical HUD 1 Map Filters NONE Filters NONE Steam 1 RUN: 2e65690f-e1a4-4df7-ac11-0cd803b2f063